[Event "*** Titled Tuesday Blitz"]
[Site "Chess.com"]
[Date "2019.09.03"]
[Round "8"]
[White "Gubajdullin"]
[Black "HarryCun"]
[Result "1-0"]
[WhiteElo "2594"]
[BlackElo "2139"]
[TimeControl "180+2"]
[EndTime "16:48:56 PDT"]
[Termination "Gubajdullin won by resignation"]

1. d4 {[%clk 0:03:01.9]} 1... Nf6 {[%clk 0:03:00.7]} 2. Bf4 {[%clk 0:03:02.7]}
2... e6 {[%clk 0:03:01.8]} 3. e3 {[%clk 0:03:03.2]} 3... b6 {[%clk 0:03:00.9]}
4. Nf3 {[%clk 0:03:04.2]} 4... Bb7 {[%clk 0:03:02.3]} 5. Be2 {[%clk 0:03:05.5]}
5... Be7 {[%clk 0:03:03.8]} 6. O-O {[%clk 0:03:06.2]} 6... O-O {[%clk
0:03:05.3]} 7. h3 {[%clk 0:03:07.4]} 7... d6 {[%clk 0:03:06.8]} 8. a4 {[%clk
0:03:08.5]} 8... Nbd7 {[%clk 0:03:08.3]} 9. a5 {[%clk 0:03:09.6]} 9... c5 {[%clk
0:03:09.6]} 10. Nc3 {[%clk 0:03:07.3]} 10... Ne4 {[%clk 0:03:04.8]} 11. Nxe4
{[%clk 0:02:57.1]} 11... Bxe4 {[%clk 0:03:05]} 12. Nd2 {[%clk 0:02:56.5]} 12...
Bc6 {[%clk 0:03:04.1]} 13. Nc4 {[%clk 0:02:49.3]} 13... Qc7 {[%clk 0:02:57.2]}
14. dxc5 {[%clk 0:02:48.8]} 14... Nxc5 {[%clk 0:02:50.2]} 15. Bxd6 {[%clk
0:02:49]} 15... Bxd6 {[%clk 0:02:49.6]} 16. Qxd6 {[%clk 0:02:49.8]} 16... Qxd6
{[%clk 0:02:48.8]} 17. Nxd6 {[%clk 0:02:50.9]} 17... Rfd8 {[%clk 0:02:45]} 18.
Nc4 {[%clk 0:02:48.4]} 18... b5 {[%clk 0:02:41.7]} 19. Ne5 {[%clk 0:02:47.6]}
19... Be4 {[%clk 0:02:42.8]} 20. Bxb5 {[%clk 0:02:46.5]} 20... Rab8 {[%clk
0:02:38.9]} 21. c4 {[%clk 0:02:42.6]} 21... a6 {[%clk 0:02:20.8]} 22. b4 {[%clk
0:02:42.5]} 22... Nb3 {[%clk 0:02:13.1]} 23. Bc6 {[%clk 0:02:35.2]} 23... Bxc6
{[%clk 0:01:17.4]} 24. Nxc6 {[%clk 0:02:33.9]} 24... Nxa1 {[%clk 0:01:19.3]} 25.
Rxa1 {[%clk 0:02:29.5]} 25... Kf8 {[%clk 0:01:13.1]} 26. b5 {[%clk 0:02:28.8]}
26... axb5 {[%clk 0:01:11.7]} 27. cxb5 {[%clk 0:02:29.9]} 27... Ke8 {[%clk
0:01:13.6]} 28. b6 {[%clk 0:02:29.4]} 28... Rdc8 {[%clk 0:01:13.2]} 29. Nxb8
{[%clk 0:02:28.7]} 29... Rxb8 {[%clk 0:01:15.1]} 30. a6 {[%clk 0:02:29.6]} 1-0

[Event "*** Titled Tuesday Blitz"]
[Site "Chess.com"]
[Date "2019.09.03"]
[Round "8"]
[White "Genghis_K"]
[Black "mitrabhaa"]
[Result "1-0"]
[WhiteElo "2860"]
[BlackElo "2658"]
[TimeControl "180+2"]
[EndTime "16:49:53 PDT"]
[Termination "Genghis_K won by resignation"]

1. e4 {[%clk 0:02:59.3]} 1... c6 {[%clk 0:03:01]} 2. Nf3 {[%clk 0:02:59.3]} 2...
d5 {[%clk 0:03:02]} 3. e5 {[%clk 0:03:00.8]} 3... Bg4 {[%clk 0:03:00.9]} 4. d4
{[%clk 0:03:01.6]} 4... e6 {[%clk 0:03:01.6]} 5. c3 {[%clk 0:03:03.2]} 5... Ne7
{[%clk 0:02:56]} 6. Be3 {[%clk 0:03:03.3]} 6... Nd7 {[%clk 0:02:52.9]} 7. Nbd2
{[%clk 0:03:04.7]} 7... Nf5 {[%clk 0:02:53.8]} 8. Bd3 {[%clk 0:03:05.3]} 8...
Nxe3 {[%clk 0:02:37]} 9. fxe3 {[%clk 0:03:07.2]} 9... Bh5 {[%clk 0:02:38]} 10.
O-O {[%clk 0:03:08.2]} 10... Be7 {[%clk 0:02:39.1]} 11. e4 {[%clk 0:03:05.8]}
11... Bg6 {[%clk 0:02:36.7]} 12. Qe2 {[%clk 0:03:06.2]} 12... Nb6 {[%clk
0:02:31.4]} 13. exd5 {[%clk 0:03:05.8]} 13... cxd5 {[%clk 0:02:29.7]} 14. Bxg6
{[%clk 0:03:02.9]} 14... hxg6 {[%clk 0:02:30.5]} 15. Rf2 {[%clk 0:03:00.9]}
15... Qd7 {[%clk 0:02:29.4]} 16. Raf1 {[%clk 0:03:01.4]} 16... O-O-O {[%clk
0:02:21.2]} 17. Ne1 {[%clk 0:02:59.3]} 17... f5 {[%clk 0:02:20.8]} 18. exf6
{[%clk 0:02:57.3]} 18... gxf6 {[%clk 0:02:20.9]} 19. Nd3 {[%clk 0:02:58.9]}
19... Qd6 {[%clk 0:02:05.9]} 20. g3 {[%clk 0:02:57.6]} 20... Nd7 {[%clk
0:01:55.9]} 21. Nc5 {[%clk 0:02:45.7]} 21... Nxc5 {[%clk 0:01:53.3]} 22. dxc5
{[%clk 0:02:46.3]} 22... Qc6 {[%clk 0:01:54.7]} 23. b4 {[%clk 0:02:44.2]} 23...
e5 {[%clk 0:01:55.8]} 24. Nb3 {[%clk 0:02:43.8]} 24... Kb8 {[%clk 0:01:51.6]}
25. Na5 {[%clk 0:02:45.1]} 25... Qc7 {[%clk 0:01:52.8]} 26. Qb5 {[%clk
0:02:34.1]} 26... a6 {[%clk 0:01:49.5]} 27. Qd3 {[%clk 0:02:32.2]} 27... e4
{[%clk 0:01:49.7]} 28. Qe2 {[%clk 0:02:28.4]} 28... f5 {[%clk 0:01:48.6]} 29. c6
{[%clk 0:02:29.7]} 29... b6 {[%clk 0:01:25]} 30. Qxa6 {[%clk 0:02:29.2]} 30...
Rd6 {[%clk 0:01:23.9]} 31. c4 {[%clk 0:02:17.8]} 31... bxa5 {[%clk 0:01:17.6]}
32. bxa5 {[%clk 0:02:12.4]} 32... Qxc6 {[%clk 0:01:11.3]} 33. Rb1+ {[%clk
0:02:11.7]} 33... Kc7 {[%clk 0:01:10.2]} 34. Qa7+ {[%clk 0:02:13]} 34... Kd8
{[%clk 0:01:11.6]} 35. Rb8+ {[%clk 0:02:13.4]} 1-0

[Event "*** Titled Tuesday Blitz"]
[Site "Chess.com"]
[Date "2019.09.03"]
[Round "8"]
[White "riconaipe"]
[Black "AllStarShark"]
[Result "1-0"]
[WhiteElo "2555"]
[BlackElo "2349"]
[TimeControl "180+2"]
[EndTime "16:50:11 PDT"]
[Termination "riconaipe won by resignation"]

1. Nf3 {[%clk 0:03:01.9]} 1... d5 {[%clk 0:02:59.8]} 2. g3 {[%clk 0:03:03.5]}
2... c6 {[%clk 0:02:56.7]} 3. Bg2 {[%clk 0:03:05]} 3... Bg4 {[%clk 0:02:57.1]}
4. O-O {[%clk 0:03:06.4]} 4... e6 {[%clk 0:02:58.2]} 5. h3 {[%clk 0:03:07.3]}
5... Bh5 {[%clk 0:02:58.5]} 6. d4 {[%clk 0:03:08.1]} 6... Bd6 {[%clk 0:02:57.9]}
7. c4 {[%clk 0:03:07.1]} 7... Ne7 {[%clk 0:02:57.3]} 8. b3 {[%clk 0:03:06.7]}
8... Nd7 {[%clk 0:02:57.6]} 9. Bb2 {[%clk 0:03:07.2]} 9... O-O {[%clk
0:02:57.6]} 10. Nbd2 {[%clk 0:03:08.2]} 10... f5 {[%clk 0:02:34]} 11. Ne5 {[%clk
0:03:06.7]} 11... Nxe5 {[%clk 0:02:21]} 12. dxe5 {[%clk 0:03:07]} 12... Bc5
{[%clk 0:02:19.3]} 13. cxd5 {[%clk 0:02:59.3]} 13... exd5 {[%clk 0:02:09.2]} 14.
Nf3 {[%clk 0:03:00.5]} 14... Bxf3 {[%clk 0:01:56.5]} 15. exf3 {[%clk 0:02:59.8]}
15... f4 {[%clk 0:01:53.6]} 16. Kh2 {[%clk 0:02:58.9]} 16... Ng6 {[%clk
0:01:49.5]} 17. Qe2 {[%clk 0:02:55.4]} 17... Qe7 {[%clk 0:01:47]} 18. Rfe1
{[%clk 0:02:49.4]} 18... Rae8 {[%clk 0:01:45.4]} 19. Qc2 {[%clk 0:02:47.2]}
19... Qg5 {[%clk 0:01:09.4]} 20. Qxc5 {[%clk 0:02:45.3]} 20... fxg3+ {[%clk
0:00:54.7]} 21. fxg3 {[%clk 0:02:46.1]} 21... h5 {[%clk 0:00:33]} 22. Qe3 {[%clk
0:02:43.3]} 22... Qe7 {[%clk 0:00:31.4]} 23. e6 {[%clk 0:02:43.7]} 23... h4
{[%clk 0:00:31.6]} 24. g4 {[%clk 0:02:40.7]} 24... Qd6+ {[%clk 0:00:25.6]} 25.
Be5 {[%clk 0:02:41.7]} 25... Qxe6 {[%clk 0:00:24.7]} 26. f4 {[%clk 0:02:42.6]}
26... Qd7 {[%clk 0:00:12.1]} 27. Qd4 {[%clk 0:02:37.8]} 27... Nxe5 {[%clk
0:00:10]} 28. Rxe5 {[%clk 0:02:38.2]} 28... Qf7 {[%clk 0:00:08.2]} 29. Rae1
{[%clk 0:02:32.8]} 29... c5 {[%clk 0:00:04.8]} 30. Qxd5 {[%clk 0:02:25.4]} 1-0

[Event "*** Titled Tuesday Blitz"]
[Site "Chess.com"]
[Date "2019.09.03"]
[Round "8"]
[White "Lunaticx"]
[Black "Niclox"]
[Result "1-0"]
[WhiteElo "2842"]
[BlackElo "2647"]
[TimeControl "180+2"]
[EndTime "16:50:37 PDT"]
[Termination "Lunaticx won on time"]

1. e4 {[%clk 0:03:01.9]} 1... c5 {[%clk 0:02:59.6]} 2. Nf3 {[%clk 0:03:03.3]}
2... d6 {[%clk 0:03:01]} 3. d4 {[%clk 0:03:04.7]} 3... cxd4 {[%clk 0:03:02]} 4.
Nxd4 {[%clk 0:03:06.6]} 4... Nf6 {[%clk 0:03:02.7]} 5. Nc3 {[%clk 0:03:08.1]}
5... g6 {[%clk 0:03:03.1]} 6. Be3 {[%clk 0:03:09.2]} 6... Bg7 {[%clk 0:03:03.9]}
7. f3 {[%clk 0:03:10.8]} 7... O-O {[%clk 0:03:05.3]} 8. Qd2 {[%clk 0:03:12.4]}
8... Nc6 {[%clk 0:03:07.2]} 9. O-O-O {[%clk 0:03:13.6]} 9... Nxd4 {[%clk
0:03:07.4]} 10. Bxd4 {[%clk 0:03:14.3]} 10... Be6 {[%clk 0:03:09.3]} 11. h4
{[%clk 0:03:15.6]} 11... Qa5 {[%clk 0:03:09.1]} 12. Kb1 {[%clk 0:03:14.5]} 12...
Rfc8 {[%clk 0:03:08.7]} 13. h5 {[%clk 0:03:09.3]} 13... Rxc3 {[%clk 0:03:06.5]}
14. Qxc3 {[%clk 0:03:06.6]} 14... Qxa2+ {[%clk 0:03:06.4]} 15. Kc1 {[%clk
0:03:07.9]} 15... Bh6+ {[%clk 0:03:04.1]} 16. Be3 {[%clk 0:03:06.5]} 16... Rc8
{[%clk 0:03:05]} 17. Qxc8+ {[%clk 0:03:03.1]} 17... Bxc8 {[%clk 0:03:02.9]} 18.
Bxh6 {[%clk 0:03:05]} 18... Nxh5 {[%clk 0:03:02.5]} 19. Bd3 {[%clk 0:02:58.1]}
19... Qa1+ {[%clk 0:02:58.5]} 20. Kd2 {[%clk 0:02:58.7]} 20... Qxb2 {[%clk
0:02:59.8]} 21. Rb1 {[%clk 0:02:56.4]} 21... Qe5 {[%clk 0:02:39.6]} 22. Rb5
{[%clk 0:02:56.9]} 22... Qg3 {[%clk 0:02:38.4]} 23. Rhxh5 {[%clk 0:02:56.8]}
23... e5 {[%clk 0:01:53.5]} 24. Rg5 {[%clk 0:02:43.8]} 24... Qh2 {[%clk
0:01:54.1]} 25. Ke2 {[%clk 0:02:35]} 25... f6 {[%clk 0:01:43.3]} 26. Bc4+ {[%clk
0:02:34.4]} 26... Kh8 {[%clk 0:01:44]} 27. Bf8 {[%clk 0:02:01.7]} 1-0

[Event "*** Titled Tuesday Blitz"]
[Site "Chess.com"]
[Date "2019.09.03"]
[Round "8"]
[White "GadimbayliA"]
[Black "johnathan113"]
[Result "1-0"]
[WhiteElo "2883"]
[BlackElo "2777"]
[TimeControl "180+2"]
[EndTime "16:51:11 PDT"]
[Termination "GadimbayliA won on time"]

1. e4 {[%clk 0:03:01.9]} 1... c5 {[%clk 0:03:00.6]} 2. Nf3 {[%clk 0:03:01.8]}
2... g6 {[%clk 0:03:02.1]} 3. d4 {[%clk 0:03:02.6]} 3... cxd4 {[%clk 0:03:04]}
4. Qxd4 {[%clk 0:03:03.6]} 4... Nf6 {[%clk 0:03:05.2]} 5. Nc3 {[%clk 0:03:04.4]}
5... Nc6 {[%clk 0:03:05.7]} 6. Qa4 {[%clk 0:03:05.9]} 6... d6 {[%clk 0:02:55.1]}
7. e5 {[%clk 0:03:06.4]} 7... dxe5 {[%clk 0:02:57]} 8. Nxe5 {[%clk 0:03:07.8]}
8... Bg7 {[%clk 0:02:58.9]} 9. Nxc6 {[%clk 0:03:07.7]} 9... bxc6 {[%clk
0:03:00.8]} 10. Qxc6+ {[%clk 0:03:09.3]} 10... Bd7 {[%clk 0:03:01.9]} 11. Qf3
{[%clk 0:03:10.9]} 11... O-O {[%clk 0:03:02.9]} 12. Bc4 {[%clk 0:03:11.5]} 12...
Rc8 {[%clk 0:02:48.6]} 13. Bb3 {[%clk 0:03:04.3]} 13... Bg4 {[%clk 0:02:45.2]}
14. Qd3 {[%clk 0:03:05.4]} 14... Qxd3 {[%clk 0:02:39]} 15. cxd3 {[%clk
0:03:07.3]} 15... Rfd8 {[%clk 0:02:36.5]} 16. O-O {[%clk 0:03:06.7]} 16... Rxd3
{[%clk 0:02:25.6]} 17. Be3 {[%clk 0:03:07.7]} 17... a6 {[%clk 0:02:17.3]} 18. h3
{[%clk 0:03:08.8]} 18... Bf5 {[%clk 0:02:15]} 19. Rad1 {[%clk 0:03:09.7]} 19...
e5 {[%clk 0:01:51.9]} 20. g4 {[%clk 0:03:06.8]} 20... Rxd1 {[%clk 0:01:50.5]}
21. Rxd1 {[%clk 0:03:08.7]} 21... Be6 {[%clk 0:01:48.4]} 22. Bxe6 {[%clk
0:03:09.8]} 22... fxe6 {[%clk 0:01:50.3]} 23. Rd6 {[%clk 0:03:11.1]} 23... Rb8
{[%clk 0:01:48.2]} 24. Bc1 {[%clk 0:02:54.6]} 24... Rc8 {[%clk 0:01:29.3]} 25.
Rxe6 {[%clk 0:02:45.2]} 25... Ne4 {[%clk 0:01:25.3]} 26. Nxe4 {[%clk 0:02:42.4]}
26... Rxc1+ {[%clk 0:01:16.3]} 27. Kg2 {[%clk 0:02:42.8]} 27... Rc2 {[%clk
0:01:17.4]} 28. Rxa6 {[%clk 0:01:54.4]} 28... Rxb2 {[%clk 0:01:15.3]} 29. a4
{[%clk 0:01:54.2]} 29... Rb6 {[%clk 0:00:15.7]} 30. Ra8+ {[%clk 0:01:26.8]} 1-0

[Event "*** Titled Tuesday Blitz"]
[Site "Chess.com"]
[Date "2019.09.03"]
[Round "8"]
[White "iturrizaga"]
[Black "joshdaruca"]
[Result "1-0"]
[WhiteElo "2933"]
[BlackElo "2727"]
[TimeControl "180+2"]
[EndTime "16:51:16 PDT"]
[Termination "iturrizaga won by resignation"]

1. c4 {[%clk 0:03:01.9]} 1... c5 {[%clk 0:02:58.1]} 2. g3 {[%clk 0:03:03.3]}
2... Nc6 {[%clk 0:02:58.5]} 3. Bg2 {[%clk 0:03:05.2]} 3... g6 {[%clk 0:03:00.2]}
4. Nc3 {[%clk 0:03:06.4]} 4... Bg7 {[%clk 0:03:01.8]} 5. Nf3 {[%clk 0:03:08.1]}
5... e6 {[%clk 0:03:03.1]} 6. d4 {[%clk 0:03:07]} 6... Nxd4 {[%clk 0:03:03.9]}
7. Nxd4 {[%clk 0:03:07.1]} 7... cxd4 {[%clk 0:03:05.6]} 8. Ne4 {[%clk
0:03:02.4]} 8... d6 {[%clk 0:03:00.2]} 9. Qa4+ {[%clk 0:02:59.7]} 9... Kf8
{[%clk 0:02:58.4]} 10. Qa3 {[%clk 0:02:56.2]} 10... Ne7 {[%clk 0:02:51.4]} 11.
Nxd6 {[%clk 0:02:56.3]} 11... Be5 {[%clk 0:02:43.2]} 12. Bf4 {[%clk 0:02:47.7]}
12... Bxf4 {[%clk 0:02:35.6]} 13. gxf4 {[%clk 0:02:49.6]} 13... Kg7 {[%clk
0:02:37.1]} 14. Rd1 {[%clk 0:02:49.6]} 14... Nf5 {[%clk 0:02:37.8]} 15. Nxf5+
{[%clk 0:02:49.6]} 15... exf5 {[%clk 0:02:36.3]} 16. e3 {[%clk 0:02:49.5]} 16...
Be6 {[%clk 0:02:34.1]} 17. Rxd4 {[%clk 0:02:49.8]} 17... Qc7 {[%clk 0:02:35.1]}
18. O-O {[%clk 0:02:49.9]} 18... a6 {[%clk 0:02:31.6]} 19. Rfd1 {[%clk
0:02:49.4]} 19... Rhd8 {[%clk 0:02:28.7]} 20. Qc3 {[%clk 0:02:49.6]} 20... Kg8
{[%clk 0:02:25.9]} 21. h3 {[%clk 0:02:40.5]} 21... h5 {[%clk 0:02:22.9]} 22.
Rxd8+ {[%clk 0:02:33.9]} 22... Rxd8 {[%clk 0:02:24]} 23. Rxd8+ {[%clk
0:02:35.5]} 23... Qxd8 {[%clk 0:02:25.6]} 24. Bxb7 {[%clk 0:02:36.7]} 24... Qd1+
{[%clk 0:02:23.8]} 25. Kg2 {[%clk 0:02:37.2]} 25... Qa4 {[%clk 0:02:25.7]} 26.
b3 {[%clk 0:02:09.4]} 26... Qxa2 {[%clk 0:02:26.5]} 27. Bd5 {[%clk 0:02:08.8]}
27... Bxd5+ {[%clk 0:02:21.2]} 28. cxd5 {[%clk 0:02:10.7]} 28... Qb1 {[%clk
0:02:22.4]} 29. Qc4 {[%clk 0:01:59.1]} 29... Qd1 {[%clk 0:02:18.4]} 30. b4
{[%clk 0:01:58.2]} 30... h4 {[%clk 0:02:14.6]} 31. Qc6 {[%clk 0:01:34.2]} 31...
Kg7 {[%clk 0:02:04]} 32. d6 {[%clk 0:01:32]} 32... Kf6 {[%clk 0:02:04.2]} 33.
Qc3+ {[%clk 0:01:18.7]} 33... Ke6 {[%clk 0:01:58.8]} 34. Qe5+ {[%clk 0:01:19.7]}
34... Kd7 {[%clk 0:02:00.5]} 35. Qe7+ {[%clk 0:01:20.7]} 35... Kc6 {[%clk
0:02:02.2]} 36. Qc7+ {[%clk 0:01:20.5]} 36... Kb5 {[%clk 0:02:00.9]} 37. d7
{[%clk 0:00:41.3]} 37... Qd5+ {[%clk 0:02:00.5]} 38. e4 {[%clk 0:00:31.2]} 38...
Qxe4+ {[%clk 0:02:00.1]} 39. Kh2 {[%clk 0:00:32.5]} 39... Qf3 {[%clk 0:01:51]}
40. Qc5+ {[%clk 0:00:30.3]} 40... Ka4 {[%clk 0:01:51.7]} 41. d8=Q {[%clk
0:00:31.3]} 41... Qxf4+ {[%clk 0:01:52.5]} 42. Kg1 {[%clk 0:00:31.6]} 42... Qg5+
{[%clk 0:01:46.9]} 43. Qxg5 {[%clk 0:00:32.2]} 1-0

[Event "*** Titled Tuesday Blitz"]
[Site "Chess.com"]
[Date "2019.09.03"]
[Round "8"]
[White "rikyshi"]
[Black "Faustregel"]
[Result "0-1"]
[WhiteElo "2222"]
[BlackElo "2516"]
[TimeControl "180+2"]
[EndTime "16:51:19 PDT"]
[Termination "Faustregel won by resignation"]

1. e4 {[%clk 0:03:01.9]} 1... c5 {[%clk 0:03:00.6]} 2. Nf3 {[%clk 0:02:54.8]}
2... d6 {[%clk 0:03:01.3]} 3. c3 {[%clk 0:02:52.3]} 3... Nf6 {[%clk 0:03:01.1]}
4. Be2 {[%clk 0:02:52]} 4... Nc6 {[%clk 0:03:00.6]} 5. d4 {[%clk 0:02:52]} 5...
cxd4 {[%clk 0:02:58.3]} 6. cxd4 {[%clk 0:02:52.9]} 6... Bg4 {[%clk 0:03:00]} 7.
d5 {[%clk 0:02:53.4]} 7... Bxf3 {[%clk 0:02:55.2]} 8. gxf3 {[%clk 0:02:52.4]}
8... Ne5 {[%clk 0:02:56.9]} 9. f4 {[%clk 0:02:51.9]} 9... Ned7 {[%clk
0:02:55.7]} 10. Nc3 {[%clk 0:02:51.9]} 10... g6 {[%clk 0:02:52.5]} 11. Be3
{[%clk 0:02:51.4]} 11... Bg7 {[%clk 0:02:53]} 12. Bd4 {[%clk 0:02:50.5]} 12...
O-O {[%clk 0:02:53.8]} 13. Bf3 {[%clk 0:02:45.6]} 13... Qa5 {[%clk 0:02:46.6]}
14. O-O {[%clk 0:02:42.9]} 14... Rfc8 {[%clk 0:02:44.7]} 15. Re1 {[%clk
0:02:35.5]} 15... Ne8 {[%clk 0:02:42.8]} 16. Bxg7 {[%clk 0:02:29.4]} 16... Nxg7
{[%clk 0:02:42.7]} 17. e5 {[%clk 0:02:29.5]} 17... Rc4 {[%clk 0:02:38]} 18. Qd2
{[%clk 0:02:13.7]} 18... Nf5 {[%clk 0:02:30.6]} 19. Re4 {[%clk 0:02:00]} 19...
Rac8 {[%clk 0:02:27.1]} 20. Rae1 {[%clk 0:01:57.8]} 20... h5 {[%clk 0:02:14.8]}
21. Rxc4 {[%clk 0:01:56.4]} 21... Rxc4 {[%clk 0:02:15.2]} 22. e6 {[%clk
0:01:52.2]} 22... Nc5 {[%clk 0:02:06.8]} 23. exf7+ {[%clk 0:01:52.9]} 23... Kxf7
{[%clk 0:02:08.5]} 24. Qe2 {[%clk 0:01:48.5]} 24... Rxf4 {[%clk 0:02:09.3]} 25.
Ne4 {[%clk 0:01:28.7]} 25... Nxe4 {[%clk 0:00:28.9]} 26. Bxe4 {[%clk 0:01:21]}
26... Nd4 {[%clk 0:00:21.6]} 27. Qe3 {[%clk 0:01:05.7]} 27... Rxe4 {[%clk
0:00:17.1]} 28. Qxe4 {[%clk 0:01:01.8]} 28... Qxe1+ {[%clk 0:00:16.2]} 29. Qxe1
{[%clk 0:01:03.7]} 29... Nf3+ {[%clk 0:00:17.3]} 30. Kf1 {[%clk 0:01:04.9]}
30... Nxe1 {[%clk 0:00:19.2]} 31. Kxe1 {[%clk 0:01:06.8]} 31... Kf6 {[%clk
0:00:20.6]} 0-1

[Event "*** Titled Tuesday Blitz"]
[Site "Chess.com"]
[Date "2019.09.03"]
[Round "8"]
[White "NemtsevIgor"]
[Black "Colombiano07"]
[Result "1-0"]
[WhiteElo "2306"]
[BlackElo "2181"]
[TimeControl "180+2"]
[EndTime "16:51:19 PDT"]
[Termination "NemtsevIgor won by resignation"]

1. d3 {[%clk 0:03:01.9]} 1... d5 {[%clk 0:03:00.3]} 2. c3 {[%clk 0:03:02.6]}
2... e5 {[%clk 0:03:00.4]} 3. Nd2 {[%clk 0:03:03.8]} 3... Nc6 {[%clk 0:03:00.4]}
4. h3 {[%clk 0:03:05.1]} 4... g6 {[%clk 0:03:00.5]} 5. g4 {[%clk 0:03:06.3]}
5... Bg7 {[%clk 0:03:02.4]} 6. Bg2 {[%clk 0:03:07.5]} 6... Be6 {[%clk
0:03:03.7]} 7. Nf1 {[%clk 0:03:07.4]} 7... Nf6 {[%clk 0:03:04.2]} 8. Nf3 {[%clk
0:03:08.1]} 8... h6 {[%clk 0:03:02.6]} 9. Ng3 {[%clk 0:03:08.8]} 9... e4 {[%clk
0:03:03.3]} 10. dxe4 {[%clk 0:03:03.3]} 10... dxe4 {[%clk 0:03:05.2]} 11. Nd4
{[%clk 0:03:02.5]} 11... Nxd4 {[%clk 0:03:04.7]} 12. cxd4 {[%clk 0:03:03.6]}
12... Bd5 {[%clk 0:03:04.4]} 13. g5 {[%clk 0:02:52.4]} 13... hxg5 {[%clk
0:03:03.3]} 14. Bxg5 {[%clk 0:02:53.1]} 14... e3 {[%clk 0:03:04]} 15. Bxd5
{[%clk 0:02:13.1]} 15... Qxd5 {[%clk 0:03:05.9]} 16. Bxe3 {[%clk 0:02:13.7]}
16... Ne4 {[%clk 0:02:49.1]} 17. Qb3 {[%clk 0:02:01.3]} 17... Qxb3 {[%clk
0:02:42.6]} 18. axb3 {[%clk 0:02:01.9]} 18... Nxg3 {[%clk 0:02:38.8]} 19. fxg3
{[%clk 0:02:02.1]} 19... a6 {[%clk 0:02:28.6]} 20. h4 {[%clk 0:02:01]} 20...
O-O-O {[%clk 0:02:29.1]} 21. Rd1 {[%clk 0:01:52.5]} 21... Rhe8 {[%clk
0:02:11.6]} 22. Kf2 {[%clk 0:01:51.1]} 22... Re4 {[%clk 0:02:11.1]} 23. Kf3
{[%clk 0:01:36.7]} 23... f5 {[%clk 0:02:10.2]} 24. h5 {[%clk 0:01:38.1]} 24...
gxh5 {[%clk 0:02:10.9]} 25. Rxh5 {[%clk 0:01:38.4]} 25... Bxd4 {[%clk 0:02:12]}
26. Bxd4 {[%clk 0:01:37.5]} 26... Rdxd4 {[%clk 0:02:10.6]} 27. Rxd4 {[%clk
0:01:38.6]} 27... Rxd4 {[%clk 0:02:12.5]} 28. Rxf5 {[%clk 0:01:39.9]} 28... Rb4
{[%clk 0:02:14.4]} 29. g4 {[%clk 0:01:29]} 29... Rxb3+ {[%clk 0:02:07.8]} 30. e3
{[%clk 0:01:23.9]} 30... Rxb2 {[%clk 0:02:09.7]} 31. g5 {[%clk 0:01:21.8]} 31...
Rb1 {[%clk 0:02:10.9]} 32. Kg4 {[%clk 0:01:17]} 32... Rg1+ {[%clk 0:02:10.7]}
33. Kh5 {[%clk 0:01:17.7]} 33... b5 {[%clk 0:02:12.6]} 34. g6 {[%clk 0:01:17.2]}
34... Rh1+ {[%clk 0:01:43.5]} 35. Kg5 {[%clk 0:01:17.9]} 35... b4 {[%clk
0:01:45]} 36. g7 {[%clk 0:01:18.4]} 36... Rg1+ {[%clk 0:01:43.5]} 37. Kf6 {[%clk
0:01:19.6]} 37... Rxg7 {[%clk 0:01:18.6]} 38. Kxg7 {[%clk 0:01:20.1]} 38... b3
{[%clk 0:01:20.5]} 39. e4 {[%clk 0:01:16.6]} 39... Kd7 {[%clk 0:01:12.6]} 40.
Kf7 {[%clk 0:01:14.1]} 40... c5 {[%clk 0:01:07.3]} 41. e5 {[%clk 0:01:14.6]}
41... b2 {[%clk 0:01:06]} 42. e6+ {[%clk 0:01:15.9]} 42... Kd6 {[%clk
0:01:06.5]} 43. Rf1 {[%clk 0:01:16.6]} 43... c4 {[%clk 0:01:07.9]} 44. e7 {[%clk
0:01:17.3]} 44... c3 {[%clk 0:01:09.5]} 45. e8=Q {[%clk 0:01:18.6]} 1-0

[Event "*** Titled Tuesday Blitz"]
[Site "Chess.com"]
[Date "2019.09.03"]
[Round "8"]
[White "newauto"]
[Black "Bishops83"]
[Result "0-1"]
[WhiteElo "1945"]
[BlackElo "2214"]
[TimeControl "180+2"]
[EndTime "16:51:25 PDT"]
[Termination "Bishops83 won by resignation"]

1. e4 {[%clk 0:03:01.9]} 1... c5 {[%clk 0:03:00.2]} 2. Nf3 {[%clk 0:03:02.2]}
2... g6 {[%clk 0:03:01.1]} 3. c3 {[%clk 0:03:01.6]} 3... Bg7 {[%clk 0:03:01.1]}
4. d4 {[%clk 0:03:02.5]} 4... cxd4 {[%clk 0:03:02.8]} 5. cxd4 {[%clk 0:03:03.1]}
5... d5 {[%clk 0:03:03.7]} 6. e5 {[%clk 0:03:02.9]} 6... Bg4 {[%clk 0:03:03.6]}
7. Nc3 {[%clk 0:03:03.1]} 7... Nc6 {[%clk 0:03:03.8]} 8. Bb5 {[%clk 0:03:02.8]}
8... Nh6 {[%clk 0:03:04]} 9. O-O {[%clk 0:03:03.1]} 9... O-O {[%clk 0:03:04.2]}
10. Bxc6 {[%clk 0:03:01.3]} 10... bxc6 {[%clk 0:03:04.1]} 11. h3 {[%clk
0:03:03.2]} 11... Bxf3 {[%clk 0:03:03.5]} 12. Qxf3 {[%clk 0:03:02.6]} 12... Nf5
{[%clk 0:03:02.5]} 13. Be3 {[%clk 0:03:01.3]} 13... c5 {[%clk 0:02:58.5]} 14.
Ne2 {[%clk 0:02:48.2]} 14... cxd4 {[%clk 0:02:45.2]} 15. Nxd4 {[%clk 0:02:43.6]}
15... Nxe3 {[%clk 0:01:37.4]} 16. Qxe3 {[%clk 0:02:42.2]} 16... Qb6 {[%clk
0:01:37.9]} 17. b3 {[%clk 0:02:34]} 17... Rac8 {[%clk 0:01:32.6]} 18. f4 {[%clk
0:02:31.2]} 18... e6 {[%clk 0:01:31.3]} 19. Rac1 {[%clk 0:02:17.6]} 19... Qa5
{[%clk 0:01:23.9]} 20. Qe2 {[%clk 0:01:58.2]} 20... Rc3 {[%clk 0:01:17.5]} 21.
Nb5 {[%clk 0:01:51.3]} 21... Rxc1 {[%clk 0:01:10.4]} 22. Rxc1 {[%clk 0:01:50.7]}
22... f6 {[%clk 0:01:10.1]} 23. Nd6 {[%clk 0:01:29.7]} 23... fxe5 {[%clk
0:01:06.4]} 24. fxe5 {[%clk 0:01:29.3]} 24... Qb6+ {[%clk 0:01:05.2]} 25. Kh1
{[%clk 0:01:27.3]} 25... Bh6 {[%clk 0:00:46.4]} 26. Rf1 {[%clk 0:01:24.4]} 26...
Qd4 {[%clk 0:00:33.3]} 27. Rxf8+ {[%clk 0:01:23]} 27... Bxf8 {[%clk 0:00:25.2]}
28. Qf3 {[%clk 0:01:20.8]} 28... Qa1+ {[%clk 0:00:23.8]} 29. Kh2 {[%clk
0:01:15.6]} 29... Qxe5+ {[%clk 0:00:25.1]} 30. g3 {[%clk 0:01:07.4]} 30... Bxd6
{[%clk 0:00:25.5]} 31. h4 {[%clk 0:01:01.9]} 31... d4 {[%clk 0:00:23.6]} 32. Qd3
{[%clk 0:01:01.6]} 32... Qe3 {[%clk 0:00:21.5]} 0-1